bitfinex/quotes_SOLUSD_20220226
["timestamp","ask_amount","ask_price","bid_price","bid_amount"]
[1645915522889,1.80392049,90.861,90.835,0.33339966]
[1645915523287,16.5247,90.85,90.835,0.33339966]
[1645915524488,0.0047,90.85,90.835,0.33339966]
[1645915524689,24.7186,90.864,90.835,0.33339966]
[1645915525790,1.80392049,90.865,90.835,0.33339966]
[1645915525990,27.4041,90.883,90.835,0.33339966]
[1645915526194,24.80602049,90.883,90.835,0.33339966]
[1645915526590,23.0021,90.883,90.835,0.33339966]
[1645915526992,24.0460457,90.882,90.835,0.33339966]
[1645915527391,22.24212521,90.881,90.835,0.33339966]
[1645915527594,16.5207,90.88,90.835,0.33339966]
[1645915528191,24.0460457,90.879,90.835,0.33339966]
[1645915528590,22.24212521,90.879,90.835,0.33339966]
[1645915528991,1.80392049,90.878,90.835,0.33339966]
[1645915529193,24.0460457,90.878,90.835,0.33339966]
[1645915529392,22.24212521,90.877,90.835,0.33339966]
[1645915529594,16.5217,90.87,90.835,0.33339966]
[1645915537922,23.0021,90.883,90.835,0.33339966]
[1645915538523,12.17883849,90.882,90.835,0.33339966]
[1645915539524,16.5196,90.88,90.835,0.33339966]
[1645915540123,12.17883849,90.879,90.835,0.33339966]
[1645915541124,23.0021,90.883,90.835,0.33339966]
[1645915541725,12.18490221,90.882,90.835,0.33339966]
[1645915542527,23.0021,90.883,90.835,0.33339966]
[1645915543529,12.19007253,90.882,90.835,0.33339966]
[1645915544230,23.0021,90.883,90.835,0.33339966]
[1645915544830,12.19214731,90.882,90.835,0.33339966]
[1645915545231,23.0021,90.883,90.835,0.33339966]
[1645915546432,12.20428535,90.882,90.835,0.33339966]
[1645915547231,12.20428535,90.885,90.835,0.33339966]
[1645915549534,0.00428535,90.885,90.835,0.33339966]
[1645915549732,0.00428535,90.885,90.836,109.2]
[1645915549933,0.00428535,90.885,90.838,109.2]
[1645915550134,112.2,90.89,90.838,109.2]
[1645915550334,16.5157,90.9,90.839,3.0247826]
[1645915550532,1.80392049,90.912,90.839,3.0247826]
[1645915551536,16.5139,90.91,90.839,3.0247826]
[1645915551737,16.5139,90.91,90.875,0.33339966]
[1645915552735,1.42174188,90.909,90.875,0.33339966]
[1645915552933,16.5177,90.9,90.875,0.33339966]
[1645915553336,24.90879187,90.908,90.875,0.33339966]
[1645915553337,4.401,90.899,90.875,0.33339966]
[1645915553535,22.31271236,90.899,90.875,0.33339966]
[1645915553734,20.50879187,90.898,90.875,0.33339966]
[1645915554135,22.31271236,90.898,90.875,0.33339966]
[1645915554335,20.50879187,90.898,90.875,0.33339966]
[1645915554534,16.5174,90.89,90.875,0.33339966]
[1645915559139,1.02392049,90.889,90.875,0.33339966]
[1645915560536,16.5174,90.89,90.875,0.33339966]
[1645915562137,1.16116572,90.875,90.832,5.55]
[1645915563138,1.16116572,90.875,90.815,4.401]
[1645915563341,1.16116572,90.875,90.817,2.86148638]
[1645915563540,1.16116572,90.875,90.818,4.402]
[1645915564343,1.16116572,90.875,90.818,109.2]
[1645915564642,1.16116572,90.875,90.819,2.70700422]
[1645915564841,1.16116572,90.875,90.822,3.06368012]
[1645915565044,1.16116572,90.875,90.823,4.402]
[1645915565242,1.16116572,90.875,90.826,2.88703295]
[1645915567143,1.16116572,90.875,90.828,2.60403722]
[1645915569748,1.16116572,90.875,90.831,109.2]
[1645915572247,0.00116572,90.875,90.831,109.2]
[1645915574551,0.00116572,90.875,90.841,112.12111886]
[1645915574750,0.00116572,90.875,90.866,0.16729941]
[1645915574950,0.00116572,90.875,90.867,0.02544181]
[1645915592488,0.00116572,90.875,90.868,4.401]
[1645915592788,0.00116572,90.875,90.87,109.2]
[1645915595089,0.00116572,90.875,90.869,23.9149]
[1645915600897,0.00116572,90.875,90.87,4.401]
[1645915602507,0.00116572,90.875,90.869,23.9149]
[1645915605703,0.00116572,90.875,90.87,4.401]
[1645915606103,0.00116572,90.875,90.869,23.9149]
[1645915606304,0.00116572,90.875,90.87,4.401]
[1645915617315,0.00116572,90.875,90.871,2.74678921]
[1645915624247,0.00116572,90.875,90.872,20.22545973]
[1645915624448,1.49023025,90.977,90.873,10.0]
[1645915624648,1.49023025,90.977,90.9,16.498]
[1645915624948,1.49023025,90.977,90.901,24.9174]
[1645915625148,1.61667817,91.009,90.901,24.9174]
[1645915625347,24.4644,91.008,90.902,2.74678921]
[1645915625548,1.5195524,91.007,90.902,2.74678921]
[1645915626147,7.74919593,91.006,90.902,2.74678921]
[1645915626548,7.74919593,91.006,90.92,16.497]
[1645915626749,0.00919593,91.006,90.93,15.89]
[1645915626948,0.00919593,91.006,90.921,51.47097968]
[1645915626949,1.83420446,91.058,90.94,15.89]
[1645915627146,6.15975461,91.082,90.941,0.25]
[1645915627348,1.76475461,91.082,90.941,49.06388921]
[1645915627548,1.76475461,91.082,90.941,99.99648769]
[1645915627748,1.73878376,91.08,90.942,53.67938769]
[1645915627949,1.73878376,91.08,90.943,0.25]
[1645915628148,1.73878376,91.08,90.943,53.92938769]
[1645915628350,1.73878376,91.08,90.96,198.65]
[1645915628551,1.73878376,91.08,90.97,15.89]
[1645915629148,1.73878376,91.08,90.971,2.74678921]
[1645915629548,1.73878376,91.08,91.01,16.4818]
[1645915629951,1.73878376,91.08,90.981,23.9684]
[1645915630151,4.394,91.079,90.981,23.9684]
[1645915630351,8.33910698,91.079,90.981,23.9684]
[1645915630553,4.394,91.079,90.981,23.9684]
[1645915630752,16.4862,91.07,90.99,16.4845]
[1645915630953,1.51024108,91.069,90.99,16.4845]
[1645915632155,4.394,91.068,90.99,16.4845]
[1645915632955,5.73694167,91.069,90.99,16.4845]
[1645915634760,1.34294167,91.069,90.99,16.4845]
[1645915637265,4.394,91.077,91.0,16.4841]
[1645915637463,4.393,91.081,91.0,16.4841]
[1645915637766,1.70936446,91.082,91.0,16.4841]
[1645915638164,4.393,91.081,91.0,16.4841]
[1645915638365,8.33810698,91.081,91.0,16.4841]
[1645915638565,8.33810698,91.081,91.001,23.0844]
[1645915638867,4.393,91.081,91.001,23.0844]
[1645915639163,20.42950698,91.08,91.001,23.0844]
[1645915639365,5.74340376,91.079,90.98,16.4864]
[1645915639765,5.74340376,91.079,90.961,24.6775]
[1645915639965,3.94510698,91.078,90.961,24.6775]
[1645915640265,16.4879,91.07,90.942,24.717]
[1645915640464,1.46931738,91.059,90.942,24.717]
[1645915640668,28.4342,91.058,90.942,24.717]
[1645915640866,1.67510104,91.057,90.942,24.717]
[1645915641171,4.394,91.056,90.942,24.717]
[1645915641568,16.4956,91.05,90.942,24.717]
[1645915641866,5.96246597,91.049,90.942,24.717]
[1645915642465,14.77553848,91.048,90.94,16.4936]
[1645915642666,5.82523587,91.047,90.94,16.4936]
[1645915643267,23.8292,91.046,90.94,16.4936]
[1645915643566,23.8292,91.046,90.923,22.7807]
[1645915643567,6.00956,91.045,90.923,22.7807]
[1645915643969,9.95466698,91.045,90.923,22.7807]
[1645915644168,1.63123844,91.043,90.923,22.7807]
[1645915644467,15.89,91.04,90.923,22.7807]
[1645915644666,5.7630797,91.039,90.923,22.7807]
[1645915644867,109.2,91.038,90.91,16.4991]
[1645915645067,112.2,91.02,90.831,112.11079751]
[1645915645266,55.0157,90.99,90.852,109.2]
[1645915645468,1.83270056,90.988,90.866,2.74678921]
[1645915645667,4.399,90.987,90.866,2.74678921]
[1645915645968,4.399,90.987,90.862,109.2]
[1645915646166,16.5047,90.98,90.861,26.42580541]
[1645915646368,1.62483325,90.979,90.862,109.2]
[1645915646670,4.399,90.978,90.862,109.2]
[1645915646868,1.62483325,90.979,90.862,109.2]
[1645915647266,7.89021396,90.977,90.863,4.399]
[1645915647467,16.5068,90.96,90.87,16.5065]
[1645915647667,16.5068,90.96,90.871,4.399]
[1645915647866,1.47794895,90.959,90.871,4.399]
[1645915648067,1.47794895,90.959,90.866,4.399]
[1645915648669,1.47794895,90.959,90.865,4.399]
[1645915649669,1.47794895,90.959,90.88,16.5046]
[1645915652470,1.47794895,90.959,90.95,0.08395056]
[1645915654674,1.47794895,90.959,90.88,16.5046]
[1645915659302,4.399,90.975,90.881,113.599]
[1645915659303,1.73784784,90.975,90.881,113.599]
[1645915659499,1.73784784,90.975,90.89,16.5035]
[1645915660598,16.5035,90.97,90.89,16.5035]
[1645915660799,1.75289381,90.969,90.89,16.5035]
[1645915661398,1.02308812,90.969,90.89,16.5035]
[1645915661599,16.5035,90.97,90.891,2.34922265]
[1645915661799,7.89021396,90.968,90.891,2.34922265]
[1645915665304,7.89021396,90.968,90.95,0.08395056]
[1645915666502,16.5053,90.96,90.95,0.08395056]
[1645915672611,24.39551396,90.96,90.95,0.08395056]
[1645915675820,0.00551396,90.96,90.95,0.08395056]
[1645915676116,19.09179187,90.974,90.95,0.08395056]
[1645915678521,16.5038,90.97,90.95,0.08395056]
[1645915688257,0.54031614,90.969,90.95,0.08395056]
[1645915709380,21.37979187,90.968,90.95,0.08395056]
[1645915711202,16.506,90.96,90.95,0.08395056]
[1645915711402,15.506,90.96,90.95,0.08395056]
[1645915711602,21.37979187,90.959,90.95,0.08395056]
[1645915712801,23.7874,90.958,90.95,0.08395056]
[1645915713202,21.37979187,90.957,90.95,0.08395056]
[1645915718607,0.53881527,90.956,90.95,0.08395056]
[1645915719009,25.77679187,90.955,90.95,0.08395056]
[1645915719409,21.37979187,90.954,90.95,0.08395056]
[1645915721810,11.48738327,90.953,90.95,0.08395056]
[1645915722211,21.37979187,90.952,90.95,0.08395056]
[1645915729023,0.5382379,90.951,90.95,0.08395056]
[1645915729424,21.91802977,90.951,90.95,0.08395056]
[1645915733828,22.0207366,90.951,90.95,0.08395056]
[1645915734730,0.64094473,90.951,90.95,0.08395056]
[1645915734930,0.0082379,90.951,90.95,0.08395056]
[1645915739134,39.66285244,90.979,90.95,0.08395056]
[1645915740534,59.04875002,90.979,90.95,0.08395056]
[1645915741336,16.5041,90.97,90.95,0.08395056]
[1645915741736,35.88999758,90.97,90.95,0.08395056]
[1645915750349,16.5041,90.97,90.95,0.08395056]
[1645915755072,35.88999758,90.97,90.95,0.08395056]
[1645915755672,16.5041,90.97,90.95,0.08395056]
[1645915756973,35.88999758,90.97,90.95,0.08395056]
[1645915757375,51.77999758,90.97,90.95,0.08395056]
[1645915757873,16.5077,90.96,90.95,0.08395056]
[1645915758876,35.89359758,90.96,90.95,0.08395056]
[1645915761780,51.78359758,90.96,90.95,0.08395056]
[1645915765388,32.3977,90.96,90.95,0.08395056]
[1645915769093,51.78359758,90.96,90.95,0.08395056]
[1645915798348,22.7831,90.959,90.95,0.08395056]
[1645915798747,24.30289758,90.958,90.95,0.08395056]
[1645915798948,16.5148,90.94,90.872,4.397]
[1645915799148,22.6798,90.939,90.872,4.397]
[1645915799350,42.58569758,90.939,90.872,4.397]
[1645915799549,4.4,90.938,90.872,4.397]
[1645915799748,24.30589758,90.938,90.872,4.397]
[1645915799948,19.90589758,90.937,90.872,4.397]
[1645915800148,4.4,90.936,90.872,4.397]
[1645915800549,16.5152,90.92,90.872,4.397]
[1645915806854,22.29789758,90.929,90.872,4.397]
[1645915807957,22.29789758,90.929,90.862,2.59050615]
[1645915809664,16.5111,90.93,90.862,2.59050615]
[1645915826606,16.5111,90.93,90.862,111.79050615]
[1645915826805,16.5111,90.93,90.863,2.55667294]
[1645915831408,22.28316424,90.929,90.863,2.55667294]
[1645915837116,24.3211,90.928,90.863,2.55667294]
[1645915846246,24.3201,90.928,90.863,2.55667294]
[1645915860268,16.5127,90.92,90.863,2.55667294]
[1645915861169,16.5127,90.92,90.862,109.2]
[1645915872180,16.5127,90.92,90.878,0.72888147]
[1645915887918,26.51662048,90.923,90.878,0.72888147]
[1645915888519,16.5127,90.92,90.878,0.72888147]
[1645915894133,43.02897381,90.92,90.878,0.72888147]
[1645915903483,33.02897381,90.92,90.878,0.72888147]
[1645915912783,0.00897381,90.92,90.878,0.72888147]
[1645915912984,24.3201,90.928,90.878,0.72888147]
[1645915914585,16.5127,90.92,90.878,0.72888147]
[1645915921094,0.0027,90.92,90.878,0.72888147]
[1645915921295,16.5105,90.94,90.878,0.72888147]
[1645915921496,23.4688,90.949,90.878,0.72888147]
[1645915925816,16.5071,90.96,90.878,0.72888147]
[1645915926717,41.0541,90.96,90.878,0.72888147]
[1645915927617,63.45220781,90.96,90.878,0.72888147]
[1645915929719,63.45220781,90.96,90.881,110.0]
[1645915929922,63.45220781,90.96,90.883,110.0]
[1645915931924,63.45220781,90.96,90.884,4.399]
[1645915933727,63.45220781,90.96,90.878,0.72888147]
[1645915933931,16.5117,90.94,90.878,0.72888147]
[1645915934128,23.5817,90.939,90.878,0.72888147]
[1645915934328,47.05967448,90.939,90.863,24.1155]
[1645915934530,5.773947,90.938,90.863,24.1155]
[1645915934728,27.87797448,90.938,90.863,24.1155]
[1645915934928,16.5124,90.93,90.863,24.1155]
[1645915935131,4.4,90.929,90.863,24.1155]
[1645915935328,22.9452,90.928,90.863,24.1155]
[1645915935536,4.4,90.927,90.863,24.1155]
[1645915936631,16.5139,90.92,90.863,24.1155]
[1645915936931,4.4,90.927,90.865,2.67244098]
[1645915937131,22.9452,90.928,90.865,2.67244098]
[1645915937329,22.9452,90.928,90.866,4.4]
[1645915937735,24.5147,90.949,90.866,4.4]
[1645915937931,23.4039,90.948,90.871,110.0]
[1645915938130,23.4039,90.948,90.873,110.0]
[1645915938331,23.4039,90.948,90.875,110.0]
[1645915938530,23.47797448,90.95,90.877,110.0]
[1645915938736,23.47797448,90.95,90.878,2.92751221]
[1645915938937,23.47797448,90.95,90.879,4.399]
[1645915939135,23.47797448,90.95,90.88,16.5056]
[1645915939335,23.47797448,90.95,90.865,4.399]
[1645915939536,23.47797448,90.95,90.865,7.22861174]
[1645915939735,23.47797448,90.95,90.865,2.82961174]
[1645915940137,23.47797448,90.95,90.866,4.4]
[1645915940636,39.98557448,90.95,90.866,2.28702985]
[1645915940837,23.0043,90.949,90.866,2.28702985]
[1645915941251,23.47797448,90.948,90.866,2.28702985]
[1645915941837,23.47797448,90.948,90.871,110.0]
[1645915942037,23.47797448,90.962,90.873,110.0]
[1645915942237,23.47797448,90.962,90.875,110.0]
[1645915942457,23.47797448,90.962,90.877,110.0]
[1645915942639,23.47797448,90.962,90.878,2.5527572]
[1645915942840,23.47797448,90.962,90.865,113.06118748]
[1645915943237,23.47797448,90.962,90.866,2.87091054]
[1645915943640,16.5055,90.96,90.881,112.51746856]
[1645915943939,23.47797448,90.959,90.929,0.72890336]
[1645915946444,16.5055,90.96,90.929,0.72890336]
[1645915952652,22.7703,90.963,90.929,0.72890336]
[1645915956263,23.47780114,90.973,90.929,0.72890336]
[1645915959783,22.8757,90.979,90.929,0.72890336]
[1645915960182,22.8757,90.979,90.929,2.72890336]
[1645915973207,24.2887,90.989,90.929,2.72890336]
[1645915973809,24.2887,90.989,90.969,0.72890336]
[1645915979031,23.47780114,91.008,90.969,0.72890336]
[1645915979432,23.855,91.019,90.969,0.72890336]
[1645915982337,23.855,91.019,91.009,0.72890336]
[1645915988140,1.04370648,91.018,91.009,0.72890336]
[1645915993346,24.13979557,91.037,91.009,0.96006896]
[1645915993546,24.13979557,91.037,91.009,0.72890336]
[1645916003455,23.79487854,91.037,91.009,0.72890336]
[1645916012886,23.79487854,91.037,90.965,3.10620009]
[1645916016391,43.69421302,91.037,90.965,3.10620009]
[1645916016589,15.89,91.03,90.942,2.71797748]
[1645916016789,16.4971,91.02,90.942,2.71797748]
[1645916016992,24.5049,91.019,90.942,2.71797748]
[1645916017590,24.29533448,91.018,90.942,2.71797748]
[1645916017788,24.29533448,91.018,90.936,22.8814]
[1645916017789,16.4976,91.01,90.937,2.90264405]
[1645916017991,24.3085,91.009,90.938,23.772]
[1645916018390,44.20722781,91.009,90.938,23.772]
[1645916018591,24.29472781,91.008,90.938,23.772]
[1645916018895,16.4996,91.0,90.911,2.43572574]
[1645916019092,4.397,90.999,90.913,2.4373256]
[1645916019294,4.397,90.999,90.903,16.8181]
[1645916019295,24.42737764,91.0,90.881,2.42346224]
[1645916019494,22.811,90.998,90.881,2.42346224]
[1645916019694,112.2,90.994,90.881,2.42346224]
[1645916019894,15.89,90.98,90.877,24.4179]
[1645916020101,5.8387993,90.979,90.877,24.4179]
[1645916020394,29.44885378,90.979,90.877,24.4179]
[1645916020600,1.47300669,90.978,90.862,2.70911975]
[1645916020797,4.397,90.977,90.929,0.0001]
[1645916020997,16.5105,90.97,90.929,0.0001]
[1645916021198,15.89,90.96,90.929,0.0001]
[1645916021402,29.08620418,90.959,90.852,23.9026]
[1645916021595,29.08620418,90.959,90.853,3.0052177]
[1645916021596,1.64701672,90.958,90.853,3.0052177]
[1645916021796,4.4,90.957,90.853,3.0052177]
[1645916021996,29.59648479,90.957,90.853,3.0052177]
[1645916022197,1.68263221,90.956,90.853,3.0052177]
[1645916022496,16.5121,90.95,90.853,3.0052177]
[1645916022696,4.4,90.949,90.853,3.0052177]
[1645916023297,24.3764,90.948,90.853,3.0052177]
[1645916023496,4.4,90.947,90.853,3.0052177]
[1645916023697,23.61005448,90.947,90.853,3.0052177]
[1645916023901,23.61005448,90.946,90.853,3.0052177]
[1645916024498,16.5119,90.93,90.853,3.0052177]
[1645916028904,22.7426,90.937,90.861,110.0]
[1645916029101,22.7426,90.937,90.862,2.3066524]
[1645916029704,23.61005448,90.936,90.82,15.89]
[1645916029902,23.61005448,90.936,90.83,16.5131]
[1645916029903,16.5116,90.93,90.83,16.5131]
[1645916030105,32.4016,90.93,90.831,2.93785261]
[1645916030312,23.61005448,90.929,90.831,2.93785261]
[1645916030504,4.401,90.928,90.831,2.93785261]
[1645916030903,23.61005448,90.927,90.831,2.93785261]
[1645916031105,22.7117,90.926,90.831,2.93785261]
[1645916031505,16.5148,90.92,90.831,2.93785261]
[1645916032403,23.61005448,90.919,90.831,2.93785261]
[1645916032803,16.5159,90.91,90.831,2.93785261]
[1645916036434,4.401,90.934,90.841,110.0]
[1645916036636,23.61005448,90.938,90.851,112.32706049]
[1645916036834,1.76241554,91.011,90.861,110.0]
[1645916037034,4.399,91.01,90.862,0.25]
[1645916037234,1.76241554,91.011,90.862,0.25]
[1645916037235,1.76241554,91.011,90.863,110.0]
[1645916037434,15.89,91.03,90.864,3.09059071]
[1645916037638,16.4966,91.02,90.872,2.59526299]
[1645916037837,32.3866,91.02,90.881,110.0]
[1645916038038,32.3866,91.02,90.884,2.40701534]
[1645916038739,32.3866,91.02,90.886,110.0]
[1645916038938,4.398,91.019,90.901,110.0]
[1645916039140,32.3866,91.02,90.92,16.4981]
[1645916039337,32.3866,91.02,90.921,2.41598815]
[1645916040238,16.4984,91.01,90.921,2.41598815]
[1645916040440,4.397,91.009,90.921,2.41598815]
[1645916040641,1.67488808,91.008,90.92,16.4981]
[1645916040839,4.397,91.007,90.905,2.54733655]
[1645916041440,16.5003,91.0,90.905,2.54733655]
[1645916042541,16.5003,91.0,90.911,2.32282161]
[1645916043343,0.691975,90.993,90.911,2.32282161]
[1645916046650,0.691975,90.993,90.92,16.4984]
[1645916046850,0.691975,90.993,90.921,3.03025551]
[1645916048352,17.19114109,91.01,90.921,3.03025551]
[1645916048956,17.19114109,91.01,90.921,49.70895551]
[1645916049155,17.19114109,91.01,90.922,2.70305755]
[1645916051457,17.19114109,91.01,90.922,112.70305755]
[1645916051657,17.19114109,91.01,90.923,2.73004286]
[1645916054866,129.39114109,91.01,90.9,15.89]
[1645916055068,15.89,91.0,90.862,50.35645382]
[1645916055269,16.5087,90.96,90.862,47.8278]
[1645916055471,6.18535345,90.959,90.862,47.8278]
[1645916056464,16.512,90.94,90.862,47.8278]
[1645916057767,32.402,90.94,90.862,47.8278]
[1645916059770,15.89,90.94,90.863,112.42651642]
[1645916059973,32.3982,90.96,90.864,2.56550814]
[1645916060471,33.76305984,90.96,90.864,2.56550814]
[1645916061571,33.76305984,90.96,90.87,16.5072]
[1645916064873,1.62647129,90.959,90.87,16.5072]
[1645916065373,1.62647129,90.959,90.864,2.56550814]
[1645916065374,1.751471,90.949,90.862,47.8278]
[1645916065775,32.3989,90.95,90.863,3.06448441]
[1645916069576,1.35082943,90.949,90.862,47.8278]
[1645916069778,16.5111,90.94,90.862,47.8278]
[1645916070003,1.55397922,90.939,90.862,47.8278]
[1645916071604,16.5111,90.94,90.862,47.8278]
[1645916087126,16.5111,90.94,90.863,112.42885612]
[1645916087327,22.8569,90.949,90.864,2.5240278]
[1645916087828,22.8569,90.949,90.865,4.4]
[1645916088629,22.8569,90.949,90.871,2.3880478]
[1645916090351,1.85643108,90.948,90.863,4.399]
[1645916090549,1.85643108,90.948,90.862,47.8278]
[1645916091053,22.8569,90.949,90.863,2.87323794]
[1645916091249,22.8569,90.949,90.862,47.8278]
[1645916091250,24.38212281,90.949,90.862,47.8278]
[1645916091450,24.38212281,90.949,90.863,4.4]
[1645916093757,24.38212281,90.949,90.862,47.8278]
[1645916093952,16.5103,90.94,90.862,47.8278]
[1645916094352,16.5103,90.94,90.862,47.3278]
[1645916096455,1.78332645,90.939,90.862,47.3278]
[1645916096654,16.5134,90.93,90.843,4.4]
[1645916096854,1.57441471,90.929,90.843,4.4]
[1645916097055,4.401,90.928,90.843,4.4]
[1645916097456,5.76056487,90.928,90.843,4.4]
[1645916098457,16.5164,90.91,90.843,4.4]
[1645916099060,4.401,90.927,90.843,4.4]
[1645916099260,22.6979,90.929,90.843,4.4]
[1645916102564,16.5138,90.92,90.843,4.4]
[1645916107166,6.16809562,90.939,90.843,4.4]
[1645916107365,6.16809562,90.939,90.85,16.5111]
[1645916107568,1.76709562,90.939,90.85,16.5111]
[1645916107770,4.4,90.949,90.851,3.0611433]
[1645916107969,23.2797,90.952,90.852,24.8525]
[1645916108268,16.5081,90.95,90.87,16.5076]
[1645916108468,16.5081,90.95,90.871,24.2827]
[1645916109069,1.76587801,90.944,90.871,24.2827]
[1645916109972,1.72257834,90.939,90.871,24.2827]
[1645916113876,16.5094,90.94,90.871,24.2827]
[1645916114082,23.2797,90.952,90.872,2.3401829]
[1645916115477,23.2797,90.952,90.88,16.5058]
[1645916118680,23.2797,90.952,90.881,2.45302314]
[1645916119083,16.507,90.96,90.881,2.45302314]
[1645916119281,16.507,90.96,90.882,23.6592]
[1645916119481,16.507,90.96,90.883,2.60784362]
[1645916120982,16.507,90.96,90.89,16.5039]
[1645916122582,20.25001041,90.958,90.89,16.5039]
[1645916125589,16.507,90.96,90.89,16.5039]
[1645916130609,16.507,90.96,90.891,2.54741584]
[1645916134115,22.6403,90.969,90.891,2.54741584]
[1645916134715,20.25001041,90.968,90.891,2.54741584]
[1645916135414,20.25001041,90.968,90.89,16.5039]
[1645916135916,20.25001041,90.968,90.883,24.2441]
[1645916136516,16.5059,90.96,90.883,24.2441]
[1645916136918,36.75591041,90.96,90.883,24.2441]
[1645916143323,16.5059,90.96,90.883,24.2441]
[1645916150134,18.12070972,90.96,90.883,24.2441]
[1645916151136,16.5059,90.96,90.883,24.2441]
[1645916152038,33.0233,90.96,90.883,24.2441]
[1645916160467,20.25001041,90.959,90.883,24.2441]
[1645916160668,16.508,90.95,90.883,24.2441]
[1645916160867,24.8248,90.949,90.883,24.2441]
[1645916162170,16.5086,90.94,90.883,24.2441]
[1645916173184,16.5086,90.94,90.845,2.9143587]
[1645916173384,16.5086,90.94,90.856,22.8567]
[1645916173685,4.4,90.939,90.856,22.8567]
[1645916174085,16.513,90.92,90.856,22.8567]
[1645916177416,16.5147,90.91,90.856,22.8567]
[1645916179517,10.71752,90.91,90.856,22.8567]
[1645916180119,10.71752,90.91,90.837,23.2641]
[1645916180724,1.67256068,90.909,90.837,23.2641]
[1645916180919,16.5216,90.89,90.837,23.2641]
[1645916181123,16.5216,90.89,90.789,16.6584]
[1645916181124,23.0316,90.89,90.789,16.6584]
[1645916181321,1.44212109,90.888,90.79,4.402]
[1645916181522,5.84412109,90.888,90.777,2.57296201]
[1645916181725,5.84412109,90.888,90.791,19.85285692]
[1645916181925,5.84412109,90.888,90.792,24.8312]
[1645916182721,1.44212109,90.888,90.792,24.8312]
[1645916183122,4.402,90.887,90.792,24.8312]
[1645916183523,16.5227,90.87,90.792,24.8312]
[1645916183724,23.4655,90.869,90.792,24.8312]
[1645916185625,16.5252,90.85,90.792,24.8312]
[1645916192441,16.5252,90.85,90.78,16.5239]
[1645916192637,16.5252,90.85,90.778,27.412]
[1645916193240,24.2992,90.849,90.778,27.412]
[1645916193437,16.5295,90.83,90.778,27.412]
[1645916196343,16.5295,90.83,90.778,23.008]
[1645916198351,16.7502,90.841,90.755,0.51004774]
[1645916198352,1.70320392,90.829,90.755,0.51004774]
[1645916198547,16.5326,90.81,90.755,0.51004774]
[1645916199448,22.5842,90.809,90.755,0.51004774]
[1645916199648,16.535,90.8,90.755,0.51004774]
[1645916201148,1.67459065,90.799,90.755,0.51004774]
[1645916201569,16.539,90.79,90.755,0.51004774]
[1645916203871,32.429,90.79,90.755,0.51004774]
[1645916204469,48.9091,90.79,90.755,0.51004774]
[1645916205070,16.5441,90.78,90.755,0.51004774]
[1645916205270,6.04503897,90.779,90.755,4.774e-05]
[1645916205670,1.63903897,90.779,90.755,4.774e-05]
[1645916205970,6.02151735,90.778,90.755,4.774e-05]
[1645916206172,16.546,90.77,90.755,4.774e-05]
[1645916206371,111.66921117,90.768,90.755,4.774e-05]
[1645916206570,110.0,90.766,90.755,4.774e-05]
[1645916206770,5.80209116,90.765,90.755,4.774e-05]
[1645916207176,27.55542642,90.765,90.755,4.774e-05]
[1645916207376,23.13431438,90.764,90.755,4.774e-05]
[1645916207571,15.89,90.76,90.755,4.774e-05]
[1645916207773,1.64992263,90.759,90.755,4.774e-05]
[1645916207971,23.40325789,90.759,90.755,4.774e-05]
[1645916208176,1.77624994,90.758,90.755,4.774e-05]
[1645916208372,23.5295852,90.758,90.755,4.774e-05]
[1645916208674,22.93960631,90.757,90.755,4.774e-05]
[1645916208871,116.08129158,90.756,90.755,4.774e-05]
[1645916209071,6.08129158,90.756,90.755,4.774e-05]
[1645916209271,24.61389789,90.756,90.755,4.774e-05]
[1645916209872,22.93960631,90.756,90.755,4.774e-05]
[1645916210074,24.6907486,90.756,90.755,4.774e-05]
[1645916210271,134.6907486,90.756,90.755,4.774e-05]
[1645916210673,139.0977486,90.756,90.755,4.774e-05]
[1645916210873,139.0977486,90.756,90.642,22.9761]
[1645916211072,4.408,90.755,90.642,22.9761]
[1645916211275,4.408,90.755,90.643,2.44357565]
[1645916211276,15.89,90.74,90.643,2.44357565]
[1645916211673,15.89,90.74,90.631,24.6987]
[1645916211674,15.89,90.74,90.632,3.08899776]
[1645916211875,136.84713329,90.739,90.633,4.409]